Cogmind - Beta 16 --- EXPLORER MODE // 2025.10.22 @ 12:36:47 Player: Mpants Result: Destroyed by as-27580 with Assembled Blade Performance ------------- Evolutions (0) 0 Regions Visited (2) 400 Robots Destroyed (3) 15 Value Destroyed (73) 73 Prototype IDs (0) 0 Alien Tech Used (0) 0 Bonus (0) 0 TOTAL SCORE: 488 Bonus ------- None Cogmind --------- Core Integrity 0/250 Matter 300/300 Energy 100/100 System Corruption 0% Temperature Cool (0) Movement Core (200) Ox3 Location -10/Mines Parts ------- > --- POWER (1) -------- (None) > --- PROPULSION (3) --- (None) > --- UTILITY (2) ------ Medium Storage Unit > --- WEAPON (2) ------- (None) > --- INVENTORY (10) --- Ion Engine Light Ion Engine Targeting Computer Peak State ------------ > --- POWER ------------ Light Ion Engine > --- PROPULSION ------- Aluminum Leg Aluminum Leg Aluminum Leg > --- UTILITY ---------- Medium Storage Unit Core Shielding > --- WEAPON ----------- Assault Rifle Mining Laser > --- INVENTORY -------- Ion Engine Targeting Computer Medium Laser Assault Rifle [Rating: 8] Favorites ----------- Power Light Ion Engine Engine Light Ion Engine Propulsion Aluminum Leg Leg Aluminum Leg Utility Medium Storage Unit Storage Medium Storage Unit Protection Core Shielding Weapon Assault Rifle Energy Gun Medium Laser Ballistic Gun Assault Rifle Special Weapon Mining Laser Build | -11 -10 -10 ------- Run | Yrd Mat Min Slots Evolved 1 | . 1 . Power . | . . . Propulsion 1 | . 1 . Utility . | . . . Weapon . | . . . Parts Attached 11 | 7 . 4 Power 2 | 1 . 1 Engine 2 | 1 . 1 Core . | . . . Reactor . | . . . Propulsion 3 | 2 . 1 Treads . | . . . Leg 3 | 2 . 1 Wheel . | . . . Hover . | . . . Flight . | . . . Utility 2 | 1 . 1 Device . | . . . Storage 1 | 1 . . Processor . | . . . Hackware . | . . . Protection 1 | . . 1 Artifact . | . . . Weapon 4 | 3 . 1 Energy Gun 1 | 1 . . Energy Cannon . | . . . Ballistic Gun 2 | 2 . . Ballistic Cannon . | . . . Launcher . | . . . Special Weapon 1 | . . 1 Impact Weapon . | . . . Slashing Weapon . | . . . Piercing Weapon . | . . . Special Melee Weapon . | . . . Unidentified Prototypes . | . . . Parts Lost 10 | . . 10 Power 2 | . . 2 Propulsion 3 | . . 3 Utility 1 | . . 1 Weapon 4 | . . 4 Highest Loss Streak 6 | . . 6 To Critical Strikes . | . . . Average Backups 3 | 2 4 3 Power 1 | . 1 1 Propulsion . | . . . Utility 1 | 1 2 1 Weapon . | . 1 . Tool/Special . | . . . Unused Backups 3 | . . 3 Power 2 | . . 2 Propulsion . | . . . Utility 1 | . . 1 Weapon . | . . . Tool/Special . | . . . Average Slot Usage (%) 72 | . 75 71 Engine 10 | . 12 9 Leg 17 | . 25 14 Storage 12 | . 12 12 Protection 7 | . . 11 Energy Gun 4 | . . 6 Ballistic Gun 15 | . 25 11 Special Weapon 2 | . . 3 Peak Build Rating 8 | 6 6 8 Average Rating 6 | 4 6 6 On Entrance 4 | . 6 6 Avg Prop Armor Cover (%) . | . . . Naked Turns . | . . . Heaviest Build 20 | 17 17 20 Greatest Support 30 | 20 20 30 Greatest Overweight (x) 6 | 4 . 6 Average Overweight (x) 1 | . . 2 Largest Inventory Capacity 10 | 10 10 10 Average Capacity 9 | 9 10 10 Most Carried 6 | 4 6 6 Average Carried 3 | 2 4 3 Final Capacity 10 | 10 10 10 Final Carried 6 | 4 6 3 Class Distribution -------------------- 100% | Hacker-Mutant Dominant Class ---------------- Hacker-Mutant | -10/Materials Hacker-Mutant | -10/Mines Resources | -11 -10 -10 ----------- Run | Yrd Mat Min Matter Collected 338 | 75 119 144 Remotely . | . . . Salvage Created 78 | . . 78 Parts 6 | . . 6 Haulers Intercepted . | . . . Recyclers Shooed . | . . . Parts Field Recycled . | . . . Retrieved Matter . | . . . Parts Self-Destructed . | . . . Prevented . | . . . Parts Restored . | . . . Kills | -11 -10 -10 ------- Run | Yrd Mat Min Combat Hostiles Destroyed 3 | . . 3 Guns 3 | . . 3 Classes Destroyed 2 | . . 2 Swarmer 2 | . . 2 Demolisher 1 | . . 1 Best Kill Streak 2 | . . 2 Combat Bots Only 2 | . . 2 Max Kills in Single Turn 1 | . . 1 Gunslinging . | . . . Exploded . | . . . Melee . | . . . Uniques/NPCs Destroyed . | . . . Combat | -11 -10 -10 -------- Run | Yrd Mat Min Hostile Shots Fired 73 | . 14 59 Missed 14 | . 5 9 Hits 59 | . 9 50 Melee 15 | . . 15 Projectile 44 | . 9 35 AOE 21 | . . 21 Part Disruptions 1 | . . 1 Damage Taken 1011 | . 70 941 Core 265 | . . 265 Absorbed by Shields . | . . . Redirected to Shielding 43 | . . 43 Ignored by Resistances 589 | . 45 544 Core Remaining (%) 100 | 100 . . Volleys Fired 13 | . . 13 Largest 2 | . . 2 Hottest 120 | . . 120 Shots Fired 19 | . . 19 Gun 18 | . . 18 Cannon . | . . . Launcher . | . . . Special 1 | . . 1 Kinetic 12 | . . 12 Thermal 7 | . . 7 Explosive . | . . . Electromagnetic . | . . . Robot Hit Streak 8 | . . 8 Robot Miss Streak 1 | . . 1 Penetration Max . | . . . Secondary Targets . | . . . Shots Hit Robots 14 | . . 14 Core Hits 6 | . . 6 Critical Kills . | . . . Critical Parts Destroyed . | . . . Critical Strikes . | . . . Melee Attacks . | . . . Impact . | . . . Slashing . | . . . Piercing . | . . . Sneak Attacks . | . . . Combat Hostiles . | . . . Follow-up Attacks . | . . . Damage Inflicted 169 | . . 169 Guns 169 | . . 169 Cannons . | . . . Explosions . | . . . Melee . | . . . Ramming . | . . . Kinetic 119 | . . 119 Thermal 50 | . . 50 Explosive . | . . . Electromagnetic . | . . . Impact . | . . . Slashing . | . . . Piercing . | . . . Highest Corruption . | . . . Average Corruption . | . . . Corruption Purged . | . . . Corruption Blocked . | . . . Overload Shots . | . . . Overflow Damage . | . . . Projectiles . | . . . Explosions . | . . . Melee . | . . . Knockbacks . | . . . Impact . | . . . Kinetic . | . . . Secondary . | . . . Self-Inflicted Damage . | . . . Shots . | . . . Rammed 1 | . . 1 Targets Rammed 1 | . . 1 Kicked . | . . . Crushed . | . . . Highest Temperature 24 | . . 24 Average Temperature 11 | . . 11 Received Heat Transfer 166 | . 66 100 Siege Activations . | . . . Martial Activations . | . . . Shielding Activations . | . . . Robots Disrupted . | . . . Combat Hostiles . | . . . Robots Corrupted . | . . . Combat Hostiles . | . . . Parts Fried . | . . . Impact Corruptions . | . . . Robots Melted . | . . . Combat Hostiles . | . . . Parts Melted . | . . . Heat Transferred 148 | . . 148 Parts Sabotaged . | . . . Parts Stolen . | . . . Parts Stripped . | . . . Power Chain Reactions . | . . . Alert | -11 -10 -10 ------- Run | Yrd Mat Min Maximum Alert Level . | . . . Low Security (%) 100 | 100 100 100 Level 1 . | . . . Level 2 . | . . . Level 3 . | . . . Level 4 . | . . . Level 5 . | . . . High Security . | . . . Max Security . | . . . Peak Influence 50 | . 15 50 Initial . | . . . Average 5 | . 1 8 Influence Increases 91 | . 21 70 Destroy 0b10 Robot/C 60 | . . 60 Destroy Leader 10 | . . 10 Successful Hack 6 | . 6 . Lose Combat Pursuer 15 | . 15 . Influence Decreases 91 | . 21 70 Time Decay 86 | . 21 65 Lost Part 5 | . . 5 Squads Dispatched . | . . . Investigation . | . . . Extermination . | . . . Reinforcement . | . . . Assault . | . . . Garrison . | . . . Intercept . | . . . Searches Triggered . | . . . Construction Impeded . | . . . Haulers Reinforced . | . . . Active Scanning Responses . | . . . Cargo Convoy Interrupts . | . . . Stealth | -11 -10 -10 --------- Run | Yrd Mat Min Distress Signals 2 | . 2 . Communications Jammed . | . . . Distress Signals . | . . . Times Spotted 17 | . 5 12 Peak Tracking Total 7 | . 7 6 Tactical Retreats 1 | . 1 . Traps | -11 -10 -10 ------- Run | Yrd Mat Min Traps Triggered . | . . . Indirectly . | . . . Trap Hack Attempts . | . . . Triggered . | . . . Disarmed . | . . . Reprogrammed . | . . . Reused . | . . . Traps Extracted . | . . . Installed . | . . . Triggered . | . . . Machines | -11 -10 -10 ---------- Run | Yrd Mat Min Machines Disabled . | . . . Max in Single Turn . | . . . Machines Repaired . | . . . Machines Dismantled . | . . . Machines Sabotaged . | . . . Overloaded Fab Kills . | . . . Hacking | -11 -10 -10 --------- Run | Yrd Mat Min Machines Accessed 3 | . 3 . Terminals 3 | . 3 . Fabricators . | . . . Repair Stations . | . . . Recycling Units . | . . . Scanalyzers . | . . . Garrison Access . | . . . Total Hacks 6 | . 6 . Successful 3 | . 3 . Failed 3 | . 3 . Catastrophic . | . . . Database Lockouts . | . . . Manual 4 | . 4 . Terminals 6 | . 6 . Fabricators . | . . . Repair Stations . | . . . Recycling Units . | . . . Scanalyzers . | . . . Garrison Access . | . . . Terminal Hacks 3 | . 3 . Patrol Status 2 | . 2 . Zone Layout 1 | . 1 . Fabricator Hacks . | . . . Repair Station Hacks . | . . . Recycling Unit Hacks . | . . . Scanalyzer . | . . . Garrison Access Hacks . | . . . Unauthorized Hacks . | . . . Terminals . | . . . Fabricators . | . . . Repair Stations . | . . . Recycling Units . | . . . Scanalyzers . | . . . Garrison Access . | . . . Data Cores Recovered . | . . . Used . | . . . Hacking Detections 2 | . 2 . Full Trace Events . | . . . Feedback Events . | . . . Feedback Blocked . | . . . Robot Schematics Acquired . | . . . Robots Built . | . . . Authchips . | . . . Time . | . . . Total Robot Build Rating . | . . . Part Schematics Acquired . | . . . Parts Built . | . . . Authchips . | . . . Time . | . . . Total Part Build Rating . | . . . Part Studies Acquired . | . . . Parts Repaired . | . . . Time . | . . . Parts Recycled . | . . . Recycled Matter . | . . . Retrieved Matter . | . . . Retrieved Components . | . . . Parts Scanalyzed . | . . . Part Schematics Acquired . | . . . Parts Damaged . | . . . Bothacking | -11 -10 -10 ------------ Run | Yrd Mat Min Used RIF Installer . | . . . Robots Hacked . | . . . Non-combat . | . . . Combat . | . . . Robot Hacks Applied . | . . . Relay Couplers Released . | . . . Fabnet Peak Effective % . | . . . Robots Rewired . | . . . Allies Hacked . | . . . Hacks Repelled . | . . . Allies | -11 -10 -10 -------- Run | Yrd Mat Min Total Allies . | . . . Largest Group . | . . . Highest-Rated Group . | . . . Highest-Rated Ally . | . . . Total Orders . | . . . Ally Attacks . | . . . Total Damage . | . . . Kills . | . . . Allies Corrupted . | . . . Allies Melted . | . . . Intel | -11 -10 -10 ------- Run | Yrd Mat Min Active Infowar (turns) . | . . . Robot Analysis Total . | . . . Derelict Logs Recovered . | . . . Drone Launches . | . . . Drone Recoveries . | . . . Exploration | -11 -10 -10 ------------- Run | Yrd Mat Min Turns Passed 459 | 69 125 265 Spaces Moved 251 | 43 103 105 Core 63 | 13 . 50 Treads . | . . . Legs 188 | 30 103 55 Wheels . | . . . Hover . | . . . Flight . | . . . Fastest Speed 50 | 50 120 120 Average Speed 157 | 120 120 208 Slowest Speed 350 | 250 120 350 Overloaded Moves . | . . . Propulsion Burnouts . | . . . Robots Hopped . | . . . Potential Cave-ins . | . . . Cave-ins Triggered . | . . . Exploration Rate (%) 18 | 4 23 27 Regions Visited 2 Branch Regions 1 Pre-discovered Areas . | . . . Known Exits Taken 2 | 1 1 . Unknown Exits Taken . | . . . Scrap Searched 1 | . . 1 Spaces Dug . | . . . Terrain Destroyed . | . . . Melee . | . . . Projectile . | . . . AOE . | . . . Terrain Rammed . | . . . Walls Destroyed . | . . . Machines Disabled . | . . . Actions | -11 -10 -10 --------- Run | Yrd Mat Min Total 290 | 59 104 127 Wait . | . . . Move 249 | 42 102 105 Hop . | . . . Pick Up 14 | 10 2 2 Fast Attach . | . . . Attach 11 | 6 . 5 Detach . | . . . Swap 2 | 1 . 1 Drop . | . . . Fire 13 | . . 13 Melee . | . . . Ram 1 | . . 1 Kick . | . . . Crush . | . . . Escape Stasis . | . . . Rewire . | . . . Trap . | . . . Miscellaneous . | . . . Route ------- -11/Scrapyard -10/Materials -10/Mines History --------- Turn | Location | Event 2 | -11/Scrapyard | Met Revision 17 6 | -11/Scrapyard | Identified exit to Materials 6 | -11/Scrapyard | Discovered exit to Materials (range 15) 70 | -11/Scrapyard | Entered Materials 70 | -10/Materials | Evolved 1 slot: Propulsion x1 166 | -10/Materials | Identified exit to Mines 166 | -10/Materials | Discovered exit to Mines (range 14) 195 | -10/Materials | Entered Mines 237 | -10/Mines | Joined a pair of Derelicts in attacking an 0b10 outpost 250 | -10/Mines | Assembled infested the area 267 | -10/Mines | Found a Scrap Suit stashed away for nefarious purposes 310 | -10/Mines | Build established: Hacker-Mutant 329 | -10/Mines | Lost 6 parts (1p3n2w) 437 | -10/Mines | Core integrity fell below 50% 457 | -10/Mines | Core integrity fell below 20% 460 | -10/Mines | Destroyed by as-27580 with Assembled Blade Last Messages --------------- 00343_ U-05 Engineer lays Concrete. 00346_ U-05 Engineer builds a Wall. 00346_ U-05 Engineer lays Concrete. 00356_ K-01 Serf collects debris. 00357_ U-05 Engineer lays Concrete. 00360_ K-01 Serf collects debris. 00362_ U-05 Engineer builds a Wall. 00362_ U-05 Engineer lays Concrete. 00366_ U-05 Engineer builds a Wall. 00391_ K-01 Serf collects debris. 00419_ Slammed into R-06 Scavenger. 00429_ K-01 Serf collects debris. 00434_ K-01 Serf destroyed. 00435_ K-01 Serf collects debris. 00438_ K-01 Serf suffers critical hit (Destroy). 00440_ Med. Laser destroyed. 00441_ Assault Rifle destroyed. 00441_ Knocked back. 00452_ Lgt. Deuterium Engine destroyed. 00456_ Core Shielding destroyed. Map ----- +----------------------------------------------------+ | ?????????????????????????????????????????????????? | | ?????????????????????????????????????????????????? | | ?????????????????????????????????????????????????? | | ?????????????????????????????????????????????????? | | ?????????????????????????????????????????????????? | | ?????????????????????????????????????????????????? | | ?????????????????????????????????????????????????? | | ?????????????????????????????????????????????????? | | ????????????????????????????###??????????????????? | | ????????????????????????????# ??????????????????? | | ????????????????????????????# #??????????????????? | | ????????????????????????????# #??????????????????? | | ????????????????????????????# #??????????????????? | | ????????????????????????????# #??????????????????? | | ????????????????????????????# #??????###?????????? | | ????????????????????????????#%#?????# ##????????? | | ????????????????????????????# ###?## #????????? | | ???????????????????????????## ! ## #????????? | | ????????????????####??????## #?????????? | | ???????????????## ##?????#[ ###?????????? | | ???????????????# #?????## ! ##???????????? | | ??????????###### ##?????###%!#####????????????? | | ?????????###### ###?????#= #?????####???????? | | ???????##### ####### #????# #???????? | | ??????## aa a #???? ????? ?? | | ??????# !% @a a #???# ????? #?? | | ??????# ! #########??# ????? #??? | | ??????## ! % #?????????## #???? #??? | | ???????## # % #???????### ##?? ##?? | | ????????##### #??????## ## ##? | | ?????????##=## ##??????# #? | | ??????????##### ##??????# #? | | ??????????????#### ######?# #?? | | ?????????????????# #?# #???? | | ?????########???## ! ##### ### #?????? | | ?????? ### ###???# ## #####?????? | | ????????????# % #?????# ## ##?????????? | | ????????????# #?#### ## ##??????????? | | ????????????###### ### ##???????????? | | ?????????????????# #????????????? | | ????????????##"??# ## #????????????? | | ????????????#""[=# ## #????????????? | | ????????????#/!!=+ ####### ##????????????? | | ????????????#|[ /* # #?????####?????????????? | | ????????????#"" # ## #??????????????????????? | | ????????????##" ## ### #??????????????????????? | | ?????????????###?## ## =%[ ?????????????????????? | | ??????????????????##### * #???????????????????? | | ??????????????????????# #???????????????????? | | ??????????????????????# #???????????????????? | +----------------------------------------------------+ Best States ------------- Heat Dissipation 25 Energy Generation 14 Energy Capacity 140 Matter Stores 300 Matter Capacity 300 Sight Range 16 Terrain Scan Density 10 Resistance: KI 35 Resistance: TH 35 Resistance: EX 35 Resistance: EM 35 Resistance: I 35 Resistance: S 35 Resistance: P 35 Core Shielding 20 Evasion (%) 55 Offensive Hacking 20 Item Schematics ----------------- None Robot Schematics ------------------ None Fabricated ------------ Nothing Repaired ---------- Nothing Studied --------- None Alien Tech Used ----------------- None Achievements -------------- You Again Challenges ------------ None Game ------ Seed PhasingSegregatorPendant Manual? 0 Play Time 00:09:01 Cumulative 12.3 hours Start 2025.10.22 @ 12:30:22 End 2025.10.22 @ 12:36:47 Sessions 1 Manual Loads 0 Difficulty Explorer Special Mode None Game No. 8 Rogue 0 Adventurer 0 Explorer 8 Win Type - Total 0 Types 0/0/0/0/0/0/0/0/0/0 Lore% 5 Gallery% 16 Achievement% 14 Wizard Run 0 Options --------- Layout 1 ASCII 0 Keyboard 0 Movement Mouse Keybinds 0 Fullscreen 2 Font 24/Smallcaps Map View 50x35 Zoom Use 0% Tactical HUD 1 Map Filters NONE Filters NONE Steam 1 RUN: 0e3fb789-5c94-4854-bae5-8079737da834